[Event "1st Chessable Sunway Formentera 2022"]
[Site "Formentera Punta Prima"]
[Date "2022.05.06"]
[Round "8.2"]
[White "Gukesh D"]
[Black "Song, Julien"]
[Result "1-0"]
[ECO "D32"]
[WhiteElo "2659"]
[BlackElo "2388"]
[Annotator "TA"]
[PlyCount "135"]
[EventDate "2022.05.05"]
[EventType "swiss"]
[EventCountry "ESP"]
[SourceTitle "playchess.com"]
[Source "ChessBase"]
[SourceQuality "1"]
[TimeControl "40/5400+30:1800+30"]

{[%evp 9,135,35,39,5,1,-4,9,0,0,0,8,-2,41,54,54,33,50,50,41,23,20,37,31,14,20,33,82,84,54,60,70,67,55,68,58,66,83,84,85,95,108,113,147,130,158,160,164,133,144,117,140,116,137,121,125,100,150,135,147,152,148,145,152,124,109,124,135,119,125,131,134,94,112,115,155,115,129,132,139,131,182,98,102,80,208,208,215,207,206,103,189,112,191,198,200,199,204,193,196,204,338,326,683,693,668,683,2089,2085,1752,1643,1606,1479,1131,1041,895,784,29981,29982,29982,29983,29983,29984,29984,29985,29985,29986,29986,29987]} 1. d4 {[%emt 0:00:46]} d5 {[%emt 0:00:49]} 2. c4 {[%emt 0:01:07]} e6 {[%emt 0:01:00]} 3. Nc3 {[%emt 0:01:42]} c5 {[%emt 0:01:16]} 4. cxd5 {[%emt 0:00:07]} exd5 {[%emt 0:00:34]} 5. Nf3 {[%emt 0:00:46]} Nc6 {[%emt 0:00:55]} 6. a3 {[%emt 0:01:03] D32: Tarrasch Defence: Sidelines and lines without g3.} Nf6 {[%emt 0:03:18]} 7. g3 {[%emt 0:01:14]} c4 {[%emt 0:01:49] [#]} 8. Bg5 $146 {[%emt 0:01:17] The position is equal.} ({Predecessor:} 8. Bg2 Qb6 9. O-O Be7 10. Qc2 O-O 11. Be3 g6 12. Ne5 Bf5 13. Qc1 Rad8 14. g4 Bxg4 15. Nxg4 Nxg4 16. Nxd5 {1-0 (62) Bevan,P (1990)-Primrose,J (1989) ICCF email 2016}) 8... Be7 {[%emt 0:03:29]} 9. Bg2 {[%emt 0:00:31]} O-O {[%emt 0:02:06]} 10. e3 {[%emt 0:02:33]} h6 {[%emt 0:16:39]} 11. Bxf6 {[%emt 0:00:06]} Bxf6 {[%emt 0:00:10]} 12. Ng1 $1 {[%emt 0:00:04]} Be6 {[%emt 0:06:12]} 13. Nge2 {[%emt 0:01:02]} Ne7 {[%emt 0:08:16]} 14. O-O {[%emt 0:05:13]} g5 {[%emt 0:09:54]} 15. b3 {[%emt 0:07:44]} Rc8 {[%emt 0:02:12]} 16. Qd2 {[%emt 0:05:14]} cxb3 {[%emt 0:05:22]} 17. Rfb1 {[%emt 0:01:14]} Qb6 {[%emt 0:03:58]} (17... Rc4 $14) 18. a4 $16 {[%emt 0:10:58]} Qb4 {[%emt 0:08:06]} 19. Qb2 {[%emt 0:05:41]} b6 {[%emt 0:10:38]} 20. Ra3 {[%emt 0:05:38][%cal Ba1a3,Ba3b3,Bb3b7][%mdl 32]} Rc4 {[%emt 0:02:35]} 21. Rxb3 {[%emt 0:00:54]} Qd6 {[%emt 0:00:27]} 22. Qa2 {[%emt 0:02:19]} Rfc8 {[%emt 0:06:47]} 23. a5 $1 {[%emt 0:00:39][%cal Ra5b6]} bxa5 {[%emt 0:00:31]} 24. Qxa5 {[%emt 0:00:21]} Qd7 {[%emt 0:02:56]} 25. Rb7 {[%emt 0:02:35]} Qc6 {[%emt 0:00:37][%cal Rc4c3]} 26. R1b3 {[%emt 0:00:52] White is much more active.} ({Much less strong is} 26. Qxa7 Rxc3 27. Nxc3 (27. Rxe7 Rc2 $15) 27... Qxc3 $16) 26... Rc7 {[%emt 0:00:36]} 27. Qxa7 {[%emt 0:01:00]} Qd7 {[%emt 0:00:24]} 28. Rxc7 {[%emt 0:02:36]} Rxc7 {[%emt 0:00:16]} 29. Qa4 {[%emt 0:00:31]} Qc8 {[%emt 0:00:44]} 30. Qb4 {[%emt 0:01:53]} Kg7 {[%emt 0:00:17]} 31. Rb1 {[%emt 0:00:11]} h5 {[%emt 0:01:19]} 32. Na4 {[%emt 0:03:09]} Rc4 {[%emt 0:00:39]} (32... Bf5 $142) 33. Qb3 {[%emt 0:00:56] Black must now prevent Nb6.} Qa6 {[%emt 0:00:41]} 34. Nec3 {[%emt 0:01:33] Bf1 is the strong threat. Pair of Knights!} Qa5 {[%emt 0:01:00]} 35. Bf1 {[%emt 0:02:26]} Rc8 {[%emt 0:00:16]} 36. Qb4 {[%emt 0:00:06]} Qxb4 {[%emt 0:01:06]} 37. Rxb4 {[%emt 0:00:02]} h4 {[%emt 0:00:12]} 38. Rb5 {[%emt 0:01:07]} h3 {[%emt 0:00:42]} 39. Nc5 {[%emt 0:02:03]} Bg4 {[%emt 0:00:11]} 40. Be2 {[%emt 0:00:00]} Bxe2 {[%emt 0:00:00]} 41. Nxe2 {[%emt 0:01:33]} Ra8 {[%emt 0:06:49] ( -> ...Ra1+)} 42. Rb1 {[%emt 0:00:07] Against Ra1} Ra2 {[%emt 0:02:26]} 43. Kf1 {[%emt 0:00:13]} g4 {[%emt 0:02:06]} 44. Nd3 {[%emt 0:01:01]} Nf5 {[%emt 0:08:14]} (44... Ra3 $16) 45. Nb4 {[%emt 0:00:22]} (45. Nc3 $1 $18 {[%cal Rc3a2]} Ra3 46. Nb5 $1 (46. Rc1 Nxd4 47. exd4 Bxd4 $14)) 45... Ra5 {[%emt 0:01:27]} 46. Nc3 {[%emt 0:00:35]} Ne7 {[%emt 0:00:40]} (46... Bxd4 $16 {keeps fighting.} 47. exd4 Nxd4 48. Nbxd5 Nf3) 47. Ke2 {[%emt 0:00:08]} Bg5 {[%emt 0:00:28]} 48. Kd3 {[%emt 0:06:42]} f5 {[%emt 0:01:36]} 49. Nc2 {[%emt 0:00:05]} (49. Kc2 $18) 49... Kf7 {[%emt 0:00:52]} (49... Ng8 $16 50. Rb7+ Kf8) 50. Rb6 {[%emt 0:00:06]} (50. Na1 $18) 50... Ra8 {[%emt 0:04:53]} (50... Ng8 $16) 51. Kd2 $18 {[%emt 0:02:23]} Ra5 {[%emt 0:02:11]} 52. Rd6 {[%emt 0:00:17]} Kg7 {[%emt 0:01:02]} 53. Kc1 {[%emt 0:00:30]} Bf6 {[%emt 0:01:22]} 54. Kb2 {[%emt 0:01:04]} f4 {[%emt 0:00:36]} (54... Ra8 $142 55. Nxd5 Rb8+ 56. Ndb4 Nc8 57. Rd7+ Kg6) 55. exf4 {[%emt 0:01:07]} ({Less strong is} 55. gxf4 Bh4 $18) 55... Nf5 $2 {[%emt 0:02:32]} (55... Kf7 56. Kc1 Kg6) 56. Rxd5 {[%emt 0:03:29]} Rxd5 {[%emt 0:00:05]} 57. Nxd5 {[%emt 0:00:04]} Bxd4+ {[%emt 0:00:21]} 58. Nxd4 {[%emt 0:00:06]} Nxd4 {[%emt 0:00:03][%mdl 4096] Endgame [#] KN-KN} 59. Ne3 $1 {[%emt 0:00:06]} Kg6 {[%emt 0:02:34]} 60. Nxg4 {[%emt 0:00:07]} Kf5 {[%emt 0:00:19]} 61. Ne5 {[%emt 0:00:08]} Ke4 {[%emt 0:00:06]} 62. Kc3 {[%emt 0:00:27]} Nf3 {[%emt 0:01:12]} 63. Nxf3 {[%emt 0:00:22] White mates.} Kxf3 {[%emt 0:00:03]} 64. f5 {[%emt 0:00:06]} Kg2 {[%emt 0:00:03]} 65. f6 {[%emt 0:00:04]} Kxh2 {[%emt 0:00:04]} 66. f7 {[%emt 0:00:03]} Kg1 {[%emt 0:00:10]} 67. f8=Q {[%emt 0:00:07]} h2 {[%emt 0:00:04]} 68. Qh6 {[%emt 0:00:05] Weighted Error Value: White=0.12 (very precise) /Black=0.26 (precise)} 1-0

[Event "1st Chessable Sunway Formentera 2022"]
[Site "Formentera Punta Prima"]
[Date "2022.05.06"]
[Round "8.3"]
[White "Cuenca Jimenez, Jose Fernando"]
[Black "Santos Ruiz, Miguel"]
[Result "1/2-1/2"]
[ECO "C78"]
[WhiteElo "2551"]
[BlackElo "2586"]
[Annotator "TA"]
[PlyCount "33"]
[EventDate "2022.05.05"]
[EventType "swiss"]
[EventCountry "ESP"]
[SourceTitle "playchess.com"]
[Source "ChessBase"]
[SourceQuality "1"]
[TimeControl "40/5400+30:1800+30"]

{[%evp 17,33,33,47,0,0,0,29,0,36,14,8,0,29,0,21,0,62,0]} 1. e4 {[%emt 0:00:03]} e5 {[%emt 0:00:07]} 2. Nf3 {[%emt 0:00:15]} Nc6 {[%emt 0:00:07]} 3. Bb5 {[%emt 0:00:14][%cal Bf1b5,Bb5a4,Ba4b3][%mdl 32]} a6 {[%emt 0:00:08]} 4. Ba4 {[%emt 0:00:13]} Nf6 {[%emt 0:00:09]} 5. O-O {[%emt 0:00:09]} b5 {[%emt 0:00:06]} 6. Bb3 {[%emt 0:00:18]} Bc5 {[%emt 0:00:08]} 7. c3 {[%emt 0:00:26]} d6 {[%emt 0:00:53]} 8. a4 {[%emt 0:00:08]} Rb8 {[%emt 0:00:07]} 9. d4 {[%emt 0:00:10]} Bb6 {[%emt 0:00:03]} 10. a5 {[%emt 0:00:13] C78: Ruy Lopez: Archangelsk and Möller Defences.} (10. Na3 $14 {is superior.}) 10... Ba7 $1 $11 {[%emt 0:00:09]} ({Resist} 10... Nxa5 11. Rxa5 Bxa5 12. dxe5 $14) (10... Bxa5 $2 11. dxe5 (11. d5 Ne7 $18) 11... dxe5 12. Qxd8+ Kxd8 13. Bd5 (13. Bxf7 Bb6 $16) 13... Nxd5 14. exd5 $18) 11. h3 {[%emt 0:00:14]} O-O {[%emt 0:00:12]} 12. Be3 {[%emt 0:00:18] White has an edge.} Re8 {[%emt 0:00:27] Nowadays more popular than 12...Ra8.} 13. Ng5 {[%emt 0:00:09]} Rf8 {[%emt 0:00:09]} 14. Nf3 {[%emt 0:00:07]} Re8 {[%emt 0:00:48]} 15. Ng5 {[%emt 0:00:12]} Rf8 {[%emt 0:00:08]} 16. Nf3 {[%emt 0:00:07]} Re8 {[%emt 0:00:03] [#]} 17. Ng5 $146 {[%emt 0:00:05] Weighted Error Value: White=0.23 (precise) /Black=0.05 (flawless)} ({White should try} 17. dxe5 $14 Bxe3 18. exf6) ({Predecessor:} 17. Re1 exd4 18. cxd4 Nxe4 19. d5 Bxe3 20. Rxe3 Na7 21. Qd4 Bf5 22. Nbd2 Nc5 23. Rxe8+ Qxe8 24. Re1 Qf8 25. Bd1 b4 {½-½ (54) Grischuk,A (2777)-Caruana,F (2842) Ekaterinburg 2020}) 1/2-1/2

[Event "1st Chessable Sunway Formentera 2022"]
[Site "Formentera Punta Prima"]
[Date "2022.05.06"]
[Round "8.4"]
[White "Martirosyan, Haik M."]
[Black "Sasikiran, Krishnan"]
[Result "1/2-1/2"]
[ECO "D43"]
[WhiteElo "2652"]
[BlackElo "2651"]
[Annotator "TA"]
[PlyCount "65"]
[EventDate "2022.05.05"]
[EventType "swiss"]
[EventCountry "ESP"]
[SourceTitle "playchess.com"]
[Source "ChessBase"]
[SourceQuality "1"]
[TimeControl "40/5400+30:1800+30"]

{[%evp 19,65,15,23,0,0,4,17,16,21,10,33,11,37,0,0,0,0,0,0,0,0,0,0,0,0,0,0,0,0,-27,-30,-35,-16,-14,-11,-11,-11,-16,-16,-15,-17,-16,-12,-12,-16,-14,-13,-8]} 1. d4 {[%emt 0:00:42]} d5 {[%emt 0:00:10]} 2. c4 {[%emt 0:00:07]} c6 {[%emt 0:00:08]} 3. Nf3 {[%emt 0:00:06]} Nf6 {[%emt 0:00:08]} 4. Nc3 {[%emt 0:00:05]} e6 {[%emt 0:00:12]} 5. Bg5 {[%emt 0:00:07]} h6 {[%emt 0:00:07]} 6. Bxf6 {[%emt 0:00:07]} Qxf6 {[%emt 0:00:08]} 7. e3 {[%emt 0:00:05]} Nd7 {[%emt 0:00:23]} 8. Bd3 {[%emt 0:00:18]} dxc4 {[%emt 0:00:20]} 9. Bxc4 {[%emt 0:00:06]} g6 {[%emt 0:00:10]} 10. O-O {[%emt 0:00:24]} Bg7 {[%emt 0:00:11]} 11. Ne4 {[%emt 0:00:18] D43: Semi-Slav: 5 Bg5 h6.} Qe7 {[%emt 0:00:11]} 12. Qc2 {[%emt 0:00:17]} O-O {[%emt 0:00:16]} 13. Bb3 {[%emt 0:00:29]} a5 {[%emt 0:00:34]} 14. Rac1 {[%emt 0:00:27] [#]} Nf6 $146 {[%emt 0:08:47]} ({Predecessor:} 14... e5 15. Rfe1 Kh7 16. Nc3 Rb8 17. Rcd1 b5 18. a4 Ba6 19. h4 b4 20. Ne2 c5 21. dxe5 Nxe5 22. Nxe5 Qxe5 {½-½ (45) Flatz,H (2294)-Spiegel,W (2391) ICCF email 2015}) 15. Ned2 {[%emt 0:01:06]} Rd8 {[%emt 0:06:37]} 16. e4 {[%emt 0:07:53]} Nd7 {[%emt 0:08:11]} 17. Rfe1 {[%emt 0:04:19]} e5 {[%emt 0:11:43]} 18. d5 {[%emt 0:01:38]} a4 {[%emt 0:09:33]} 19. Bxa4 {[%emt 0:02:15]} cxd5 {[%emt 0:03:33]} 20. Bb3 {[%emt 0:03:25]} Nf6 {[%emt 0:07:02][%cal Bd7f6,Bf6d5,Bd5f4][%mdl 32]} 21. Qc7 {[%emt 0:07:24]} Qxc7 {[%emt 0:09:37]} 22. Rxc7 {[%emt 0:00:23]} Bf8 {[%emt 0:00:13]} 23. exd5 {[%emt 0:04:56]} ({Don't play} 23. Nxe5 Bd6 24. Nxf7 Bxc7 $15) 23... Nxd5 {[%emt 0:05:02]} 24. Rcc1 {[%emt 0:05:32]} Nf4 {[%emt 0:05:56] aiming for ...Nd3.} 25. Re3 {[%emt 0:16:38]} ({But not} 25. Rxe5 $2 Nd3 26. Rce1 Nxe1 27. Rxe1 Bg7 $19) 25... Be6 {[%emt 0:04:58]} 26. Bxe6 {[%emt 0:08:47] The position is equal.} Nxe6 {[%emt 0:00:14]} 27. Rxe5 {[%emt 0:01:02]} Rxa2 {[%emt 0:02:35]} 28. Rb5 {[%emt 0:00:17]} Nd4 {[%emt 0:03:57]} 29. Nxd4 {[%emt 0:00:13]} Rxd4 {[%emt 0:00:04]} 30. Nf3 {[%emt 0:01:40]} Rb4 {[%emt 0:02:09]} 31. Rxb4 {[%emt 0:00:06]} Bxb4 {[%emt 0:00:03]} 32. Rb1 $1 {[%emt 0:00:16]} f6 {[%emt 0:02:01]} 33. Kf1 {[%emt 0:00:34] A rather calm draw.  Weighted Error Value: White=0.06 (flawless) /Black=0.04 (flawless)} 1/2-1/2

[Event "1st Chessable Sunway Formentera 2022"]
[Site "Formentera Punta Prima"]
[Date "2022.05.06"]
[Round "8.5"]
[White "Vrolijk, Liam"]
[Black "Sargsyan, Shant"]
[Result "0-1"]
[ECO "E11"]
[WhiteElo "2467"]
[BlackElo "2641"]
[Annotator "TA"]
[PlyCount "98"]
[EventDate "2022.05.05"]
[EventType "swiss"]
[EventCountry "ESP"]
[SourceTitle "playchess.com"]
[Source "ChessBase"]
[SourceQuality "1"]
[TimeControl "40/5400+30:1800+30"]

{[%evp 12,98,10,6,19,32,26,17,19,23,26,24,71,19,16,35,64,52,56,40,54,51,49,20,15,13,67,0,0,0,0,0,37,26,107,-133,43,25,41,25,182,86,107,17,20,0,0,-52,-39,-54,-61,-62,-21,-25,-35,-34,-29,-33,-20,-88,-48,-140,-128,-126,-118,-172,-167,-432,-410,-406,-131,-247,-22,-15,-30,-29,-20,-30,-30,-109,-109,-109,-89,-92,-92,-206,-194,-687,-656]} 1. d4 {[%emt 0:00:03]} Nf6 {[%emt 0:07:17]} 2. c4 {[%emt 0:00:10]} e6 {[%emt 0:00:08]} 3. g3 {[%emt 0:00:07]} Bb4+ {[%emt 0:01:06]} 4. Bd2 {[%emt 0:00:09]} a5 {[%emt 0:00:27]} 5. Bg2 {[%emt 0:02:27]} d5 {[%emt 0:00:24]} 6. Qc2 {[%emt 0:01:10]} O-O {[%emt 0:00:27]} 7. Nf3 {[%emt 0:01:48]} c5 {[%emt 0:00:19] E11: Bogo-Indian.} 8. dxc5 {[%emt 0:02:50]} d4 {[%emt 0:00:36]} 9. Bxb4 {[%emt 0:00:25]} axb4 {[%emt 0:00:05] The position is equal.} 10. Ne5 {[%emt 0:02:33] Prevents Nc6.} Qc7 {[%emt 0:01:36][%csl LRc5,LRe5]} 11. Nd3 {[%emt 0:03:41]} e5 {[%emt 0:01:52]} (11... Na6 $11) 12. Nd2 {[%emt 0:08:16]} ({Better is} 12. Nxb4 $16 Qxc5 13. a3) 12... Na6 {[%emt 0:01:51]} 13. O-O {[%emt 0:05:37] [#]} h5 $146 {[%emt 0:01:39][%cal Bh7h5,Bh5h4,Bh4h3][%mdl 32]} ({Predecessor:} 13... Bf5 14. Nb3 Nd7 15. c6 bxc6 16. c5 Nf6 17. Qd2 Be4 18. Bxe4 Nxe4 19. Qc2 Qe7 {0-1 (51) Romanishin,O (2415)-Erigaisi,A (2675) Ciutadella de Menorca 2022}) 14. Nb3 {[%emt 0:17:05]} h4 {[%emt 0:01:28]} 15. Qd2 {[%emt 0:03:55]} (15. gxh4 e4 16. Ne1 Nxc5 $15) 15... h3 {[%emt 0:05:07]} 16. Bh1 {[%emt 0:01:25]} Re8 {[%emt 0:05:51]} 17. f4 {[%emt 0:10:35]} e4 {[%emt 0:13:02]} 18. Ne5 {[%emt 0:03:47] White wants to play a3.} Bg4 {[%emt 0:07:37]} ({Black should try} 18... Nxc5 $11 19. Nxd4 Ncd7) 19. Qxd4 {[%emt 0:03:50]} (19. Nxg4 Nxg4 20. Nxd4 (20. Qxd4 $2 Rad8 $19) 20... Qxc5 $11) (19. Nxd4 $14 Qxc5 20. e3) 19... Bxe2 $11 {[%emt 0:00:34]} 20. Rfe1 $36 {[%emt 0:00:52][%mdl 2048] Black is under pressure.} Rad8 {[%emt 0:01:04]} 21. Qf2 {[%emt 0:06:35]} Bd3 {[%emt 0:03:58]} 22. Rad1 {[%emt 0:02:06][%cal Oc5c6]} Qc8 {[%emt 0:03:33] Prevents c6.} (22... Re7 $11) 23. Nxd3 $2 {[%emt 0:09:51]} (23. c6 $1 $16 {[%cal Rc6b7] and life is bright. And now cxb7 would win.} bxc6 24. Qa7) 23... exd3 $2 {[%emt 0:00:11]} (23... Ng4 $1 $17 {[%cal Rg4f2]} 24. Qf1 exd3 25. Rxe8+ (25. Rxd3 $2 Rxd3 26. Bd5 Nxc5 $19) (25. Qxh3 Rxe1+ 26. Rxe1 d2 $17) 25... Rxe8) 24. Rxe8+ $14 {[%emt 0:01:11]} Rxe8 {[%emt 0:00:16]} 25. Bf3 {[%emt 0:00:27]} (25. Rxd3 $2 Ng4 26. Qd2 Nxc5 27. Nxc5 Qxc5+ 28. Kf1 Qxc4 $19) 25... d2 $2 {[%emt 0:19:12]} (25... Ne4 $1 $11 26. Bxe4 Rxe4) 26. Rxd2 {[%emt 0:03:09]} (26. Qxd2 $18 {has better winning chances.} Nxc5 27. Qxb4 Nxb3 28. axb3) 26... Ng4 {[%emt 0:00:08]} 27. Bxg4 {[%emt 0:00:53]} (27. Qf1 $1 $16) 27... Qxg4 $11 {[%emt 0:00:05]} 28. Kf1 {[%emt 0:00:55]} Qe6 {[%emt 0:01:28] Threatens to win with ...Qe4.} 29. Rd5 {[%emt 0:01:43]} (29. Rc2 $11) 29... Qe4 $15 {[%emt 0:01:19] ( -> ...Qb1+)} 30. Re5 $1 {[%emt 0:00:14]} (30. Kg1 $2 Qb1+ 31. Qf1 Re1 $19) 30... Rxe5 {[%emt 0:01:01]} 31. fxe5 {[%emt 0:00:05][%cal Oe5e6]} Qxc4+ {[%emt 0:00:15][%mdl 4096] Endgame KQN-KQN} 32. Ke1 {[%emt 0:01:30]} Qe4+ {[%emt 0:06:55][%mdl 1024] Black has compensation.} 33. Qe2 {[%emt 0:00:46]} Qh1+ {[%emt 0:00:04]} 34. Kd2 {[%emt 0:00:05]} Nc7 {[%emt 0:00:09]} 35. Nc1 {[%emt 0:02:56] [#]} (35. Nd4 $11) 35... Ne6 $1 $17 {[%emt 0:02:48] Strongly threatening ...Nd4.} 36. Nb3 {[%emt 0:02:14] Against Nd4} (36. Nd3 $15) 36... Qd5+ {[%emt 0:06:12]} (36... Qb1 37. Ke3 $17) 37. Kc2 {[%emt 0:00:24]} Ng5 {[%emt 0:02:17] ...Nf3 is the strong threat.} ({Much weaker is} 37... Nxc5 $6 38. Nxc5 Qxc5+ 39. Kb3 $11) (37... Qg2 38. Kd2) 38. Nd2 {[%emt 0:01:48] Prevents Nf3.} (38. Qd3 $17 Qxe5 39. a4) 38... Qxc5+ {[%emt 0:01:30]} 39. Kb3 $2 {[%emt 0:00:31]} (39. Kb1) 39... Ne6 $19 {[%emt 0:04:15] White must now prevent ...Nd4+.} 40. Nf3 {[%emt 0:00:00]} Qd4 $2 {[%emt 0:00:00]} 41. Ka4 {[%emt 0:05:24] [#]} (41. Kc2 $17 {was the only defense.}) 41... Nc5+ $2 {[%emt 0:14:02]} ({Black should play} 41... Qb6 $1 $19 {[%cal Re6c5]} 42. Kb3 g5) 42. Kb5 $11 {[%emt 0:01:32]} Qd5 {[%emt 0:00:04] Hoping for ...Nd3+.} ({But not} 42... Ne6 $2 43. Ka4 Qc5 44. Qb5 $19) 43. Kxb4 {[%emt 0:03:18]} Nd3+ {[%emt 0:00:06]} 44. Kc3 {[%emt 0:00:57]} Nc1 {[%emt 0:00:05]} 45. Qf1 {[%emt 0:06:21]} (45. Qe3 $11 {remains equal.}) 45... Nxa2+ $17 {[%emt 0:00:11]} 46. Kc2 {[%emt 0:00:05]} Nb4+ {[%emt 0:01:22]} 47. Kc3 {[%emt 0:00:07]} Qe4 {[%emt 0:02:45][%cal Ob7b5] Black is more active.} 48. Kb3 {[%emt 0:01:44]} (48. Qd1 $17 Nd5+ 49. Kd2) 48... Nc6 $19 {[%emt 0:00:42][%cal Oe4f3]} ({Stronger than} 48... Nd3 49. Nd2 Qd4 50. Kc2 Nb4+ 51. Kd1 $17) 49. Nh4 {[%emt 0:06:45]} (49. Kc3) 49... g5 {[%emt 0:01:31] Weighted Error Value: White=0.56/Black=0.40} 0-1

[Event "1st Chessable Sunway Formentera 2022"]
[Site "Formentera Punta Prima"]
[Date "2022.05.06"]
[Round "8.6"]
[White "Yankelevich, Lev"]
[Black "Real, Thibault"]
[Result "1-0"]
[ECO "D78"]
[WhiteElo "2473"]
[BlackElo "2262"]
[Annotator "TA"]
[PlyCount "81"]
[EventDate "2022.05.05"]
[EventType "swiss"]
[EventCountry "ESP"]
[SourceTitle "playchess.com"]
[Source "ChessBase"]
[SourceQuality "1"]
[TimeControl "40/5400+30:1800+30"]

{[%evp 12,81,11,4,27,-31,-22,-31,-30,-40,-29,-52,-43,-37,-45,-42,-44,-97,-47,-46,-48,-47,-56,-78,-71,-62,-78,-68,-75,-107,-122,-103,-101,-104,-79,-92,-93,-96,-77,-70,-77,-109,166,151,521,516,630,617,616,569,605,564,793,759,689,558,963,917,2934,2164,2040,1919,9089,6921,5169,1814,29976,29977,29977,29978,29974,29974]} 1. Nf3 {[%emt 0:00:56]} Nf6 {[%emt 0:00:15]} 2. g3 {[%emt 0:00:08]} d5 {[%emt 0:00:06]} 3. Bg2 {[%emt 0:00:06]} g6 {[%emt 0:02:26]} 4. O-O {[%emt 0:00:37]} Bg7 {[%emt 0:00:56]} 5. d4 {[%emt 0:00:35]} O-O {[%emt 0:01:30]} 6. c4 {[%emt 0:00:54]} c6 {[%emt 0:00:16]} 7. Ne5 {[%emt 0:00:52]} Ng4 {[%emt 0:03:09] now supersedes 7...dxc4. D78: Fianchetto Grünfeld: 6 0-0 c6.} 8. Nf3 {[%emt 0:14:21]} ({White should play} 8. cxd5 $11 cxd5 9. Nf3) 8... dxc4 $15 {[%emt 0:05:38]} 9. a4 {[%emt 0:03:11]} e5 {[%emt 0:04:42][%cal Re5d4] Black is slightly better.} 10. h3 {[%emt 0:00:14] [#]} e4 $1 {[%emt 0:02:44]} 11. Ng5 {[%emt 0:13:36] [#]} e3 $146 {[%emt 0:03:53]} ({Predecessor:} 11... Nf6 12. e3 Re8 13. h4 h6 14. Nh3 b5 15. axb5 cxb5 16. Na3 Qb6 17. Qc2 Bb7 {1-0 (41) Macanga,B (1899)-Abdil,H (2100) Bosnjaci 2017}) 12. hxg4 {[%emt 0:02:27]} Qxg5 {[%emt 0:00:04]} 13. Bxe3 {[%emt 0:00:06]} Qxg4 {[%emt 0:00:15]} 14. Qc2 {[%emt 0:00:46]} (14. Bf3 $15 Qe6 15. Na3) 14... Be6 {[%emt 0:26:42]} ({Much weaker is} 14... Bxd4 $6 15. Bf3 Qd7 16. Rd1 $11) (14... Na6 $17) 15. Bf3 {[%emt 0:03:01]} Qh3 {[%emt 0:11:42]} 16. Bg2 {[%emt 0:01:07]} Qh5 {[%emt 0:00:55]} 17. Bf3 {[%emt 0:00:13]} Bg4 {[%emt 0:05:11]} 18. Bxg4 {[%emt 0:00:33]} Qxg4 {[%emt 0:00:02]} 19. Qxc4 {[%emt 0:03:28]} Nd7 {[%emt 0:02:13] ...Qh3 is the strong threat.} 20. Nd2 {[%emt 0:01:59][%cal Bb1d2,Bd2f3,Bf3g5][%mdl 32]} Nb6 {[%emt 0:07:55]} 21. Qd3 {[%emt 0:03:13]} Rad8 22. Nf3 {[%emt 0:00:30]} Rfe8 23. Kg2 {[%emt 0:00:30]} c5 {[%cal Rc5d4]} 24. Bg5 {[%emt 0:00:30]} Rd5 25. a5 {[%emt 0:00:30]} Rxg5 26. Qb5 {[%emt 0:00:30] [#]} ({Not} 26. Nxg5 $2 Nd5 27. Qf3 Qxg5 28. dxc5 Bxb2) 26... Nd7 $2 {[%mdl 8192]} (26... Qe4 $1 $17 {Threatens to win with ...Nd5.} 27. axb6 a6) 27. Nxg5 $18 {[%emt 0:00:30]} Rxe2 $2 {This costs Black the game.} (27... Qxg5 $16 {is more resistant.} 28. Qxd7 Rxe2) 28. Nf3 {[%emt 0:00:30]} Rc2 29. Rac1 {[%emt 0:00:30]} Rxc1 30. Rxc1 {[%emt 0:00:30][%cal Bf1c1,Bc1c3,Bc3f3][%mdl 32]} Bxd4 31. Qxb7 {[%emt 0:00:30]} Nf6 32. Nxd4 {[%emt 0:00:30]} Qxd4 {[%mdl 4096] Endgame KQR-KQN} 33. Rc3 {[%emt 0:00:30]} Ne4 34. Rf3 {[%emt 0:00:30]} f5 35. Qb8+ {[%emt 0:00:30]} Kg7 36. Qxa7+ {[%emt 0:00:30]} Kh6 37. Qe7 {[%emt 0:00:30] Rf4 would kill now.} Qd5 38. Kh2 {[%emt 0:00:30]} (38. a6 $142 g5 39. Qf8+ Kg6 40. a7) 38... Ng5 39. Rf4 {[%emt 0:00:30][%cal Rf4h4] White mates.} Nf3+ {[#]} 40. Rxf3 $1 {[%emt 0:00:30][%mdl 512]} Qxf3 41. Qe3+ {[%emt 0:30:30] Weighted Error Value: White=0.15 (very precise) /Black=0.74} 1-0